bitfinex-derivatives/quotes_BTCF0:USTF0_20241104
["timestamp","ask_amount","ask_price","bid_price","bid_amount"]
[1730706575679,0.002,68705.0,68704.0,1.05134295]
[1730706576774,0.002,68705.0,68704.0,0.61470295]
[1730706577180,0.002,68705.0,68704.0,1.05134295]
[1730706577382,0.001,68705.0,68704.0,1.05134295]
[1730706577567,0.3608,68723.0,68719.0,0.072806]
[1730706577774,0.072806,68720.0,68719.0,0.072806]
[1730706579173,0.008,68720.0,68719.0,0.072807]
[1730706579379,0.008,68720.0,68719.0,0.073807]
[1730706579574,0.080806,68720.0,68719.0,0.073807]
[1730706580180,0.012,68720.0,68719.0,0.072807]
[1730706582479,0.012,68720.0,68719.0,0.134807]
[1730706582790,0.012,68720.0,68714.0,0.04353793]
[1730706582791,0.072811,68715.0,68714.0,0.04353793]
[1730706582974,0.3608,68716.0,68713.0,0.04353793]
[1730706583172,0.072819,68709.0,68706.0,0.07282]
[1730706583481,0.072817,68710.0,68706.0,0.02348356]
[1730706583677,0.072817,68710.0,68709.0,0.072817]
[1730706584291,0.43361,68716.0,68703.0,0.0305]
[1730706584479,0.072818,68709.0,68703.0,0.0305]
[1730706584674,0.072818,68709.0,68707.0,0.072819]
[1730706585380,0.072818,68709.0,68708.0,0.072819]
[1730706586086,0.074818,68709.0,68708.0,0.072819]
[1730706586490,0.001,68709.0,68708.0,0.072819]
[1730706586684,0.002,68709.0,68708.0,0.074819]
[1730706588483,0.001,68709.0,68708.0,0.074819]
[1730706588792,0.002,68709.0,68708.0,0.083819]
[1730706589188,0.002,68709.0,68708.0,0.081819]
[1730706589488,0.002,68709.0,68708.0,0.083819]
[1730706590384,0.002,68709.0,68708.0,0.081819]
[1730706590595,0.002,68709.0,68708.0,0.083819]
[1730706591490,0.001,68709.0,68708.0,0.074819]
[1730706591681,0.002,68709.0,68708.0,0.083819]
[1730706592189,0.002,68709.0,68708.0,0.12735693]
[1730706594588,0.002,68709.0,68708.0,0.083819]
[1730706595082,0.002,68709.0,68708.0,0.12735693]
[1730706595283,0.002,68709.0,68708.0,0.083819]
[1730706595489,0.002,68709.0,68708.0,0.12735693]
[1730706596277,0.002,68709.0,68708.0,0.083819]
[1730706597191,0.002,68709.0,68708.0,0.50266958]
[1730706597583,0.002,68709.0,68708.0,0.444619]
[1730706598096,0.002,68709.0,68708.0,0.881259]
[1730706598791,0.002,68709.0,68708.0,1.181259]
[1730706598996,0.002,68709.0,68708.0,1.25382223]
[1730706599397,0.002,68709.0,68708.0,0.95382223]
[1730706599585,0.002,68709.0,68708.0,1.25382223]
[1730706600191,0.002,68709.0,68708.0,1.181259]
[1730706600395,0.002,68709.0,68708.0,0.881259]
[1730706603094,0.002,68709.0,68708.0,0.444619]
[1730706603295,0.002,68709.0,68708.0,0.881259]
[1730706604996,0.002,68709.0,68708.0,0.988899]
[1730706607897,0.00218342,68727.0,68726.0,0.072799]
[1730706608098,0.0629,68744.0,68743.0,0.072781]
[1730706608294,0.0629,68744.0,68743.0,0.21266095]
[1730706608295,0.0325,68744.0,68743.0,0.21266095]
[1730706609592,0.0465,68744.0,68743.0,0.21266095]
[1730706609797,0.014,68744.0,68743.0,0.21266095]
[1730706610096,0.0316,68751.0,68750.0,0.072774]
[1730706610307,0.0316,68751.0,68750.0,0.21265395]
[1730706610692,0.3608,68760.0,68748.0,0.50067995]
[1730706610893,0.3608,68760.0,68759.0,0.072765]
[1730706612104,0.0316,68763.0,68762.0,0.072761]
[1730706612402,0.00218218,68764.0,68763.0,0.07276]
[1730706612590,0.00218218,68764.0,68763.0,0.57343995]
[1730706613907,0.0316,68770.0,68769.0,0.072754]
[1730706614095,0.0316,68770.0,68769.0,0.433554]
[1730706614299,0.0316,68770.0,68769.0,0.57343395]
[1730706614798,0.0623,68776.0,68769.0,0.50067995]
[1730706614997,0.0623,68776.0,68775.0,0.21262795]
[1730706616212,0.072749,68774.0,68770.0,0.072752]
[1730706617406,0.0673,68776.0,68773.0,0.072749]
[1730706617710,0.0673,68776.0,68775.0,0.072748]
[1730706617909,0.0323,68781.0,68771.0,0.13987995]
[1730706618215,0.0323,68781.0,68780.0,0.072742]
[1730706620010,1.26913995,68781.0,68773.0,0.002]
[1730706620306,0.072768,68756.0,68746.0,0.072778]
[1730706620515,1.1283279,68756.0,68731.0,0.3608]
[1730706620714,0.072788,68737.0,68735.0,0.072789]
[1730706621009,0.3608,68740.0,68739.0,0.072786]
[1730706621713,0.072788,68737.0,68736.0,0.072788]
[1730706621910,0.07279,68735.0,68731.0,0.3608]
[1730706622111,0.07279,68735.0,68730.0,0.08707587]
[1730706622112,0.07279,68735.0,68733.0,0.072792]
[1730706622302,0.13987995,68737.0,68730.0,0.08707587]
[1730706622503,0.072787,68738.0,68730.0,0.08707587]
[1730706622806,0.072787,68738.0,68736.0,0.072788]
[1730706623005,0.3628,68740.0,68739.0,0.028]
[1730706623313,0.435585,68740.0,68739.0,0.028]
[1730706623711,0.467285,68740.0,68739.0,0.014]
[1730706624306,0.3935,68740.0,68734.0,0.07758046]
[1730706624510,0.07279,68735.0,68734.0,0.16437146]
[1730706624706,0.07279,68735.0,68734.0,0.15937146]
[1730706624902,0.50927,68735.0,68734.0,0.02618046]
[1730706625103,0.072809,68717.0,68716.0,0.00218281]
[1730706625304,0.93428895,68717.0,68716.0,0.00218281]
[1730706625504,0.93428895,68717.0,68716.0,0.07499281]
[1730706625713,0.57348895,68717.0,68716.0,0.07499281]
[1730706626110,0.433609,68717.0,68716.0,0.07499281]
[1730706627113,0.439609,68717.0,68716.0,0.07599281]
[1730706627311,0.439609,68717.0,68716.0,0.08799281]
[1730706627312,0.079809,68717.0,68716.0,0.08799281]
[1730706627510,0.36298331,68733.0,68732.0,0.072793]
[1730706628117,0.072796,68730.0,68727.0,0.072798]
[1730706628323,0.072797,68729.0,68727.0,0.072798]
[1730706628622,0.36298331,68733.0,68730.0,0.072795]
[1730706628623,0.072793,68732.0,68730.0,0.072795]
[1730706628810,0.36298331,68733.0,68716.0,0.36498281]
[1730706629006,0.0728,68726.0,68719.0,0.13987995]
[1730706629313,0.36298331,68733.0,68719.0,0.21268695]
[1730706629314,0.3608,68724.0,68719.0,0.21268695]
[1730706629524,0.072807,68719.0,68716.0,0.00218281]
[1730706629728,0.072807,68719.0,68717.0,0.072809]
[1730706629911,0.072807,68719.0,68718.0,0.072808]
[1730706630312,0.072804,68723.0,68720.0,0.072805]
[1730706631617,0.073804,68723.0,68720.0,0.086805]
[1730706632122,0.001,68723.0,68720.0,0.086805]
[1730706633213,0.072805,68721.0,68720.0,0.086805]
[1730706633410,0.072805,68721.0,68720.0,0.100805]
[1730706633709,0.001,68723.0,68720.0,0.028]
[1730706634024,0.001,68723.0,68722.0,0.072804]
[1730706634327,0.0327,68740.0,68722.0,0.072804]
[1730706634328,0.3608,68731.0,68730.0,0.072795]
[1730706634619,0.3608,68731.0,68730.0,0.21267495]
[1730706636310,0.3608,68731.0,68730.0,0.13987995]
[1730706636511,0.433594,68731.0,68730.0,0.014]
[1730706637219,0.434594,68731.0,68730.0,0.028]
[1730706637822,0.433594,68731.0,68730.0,0.014]
[1730706638018,1.01095395,68731.0,68730.0,0.028]
[1730706638320,0.870074,68731.0,68730.0,0.014]
[1730706638520,0.871074,68731.0,68730.0,0.028]
[1730706640023,0.870074,68731.0,68730.0,0.014]
[1730706640221,1.01095395,68731.0,68730.0,0.028]
[1730706640622,1.01095395,68731.0,68730.0,0.014]
[1730706640823,1.00995395,68731.0,68730.0,0.014]
[1730706641127,1.01095395,68731.0,68730.0,0.028]
[1730706641324,0.993114,68731.0,68730.0,0.014]
[1730706641525,1.002114,68731.0,68730.0,0.002]
[1730706642914,0.565634,68731.0,68730.0,0.002]
[1730706643723,0.443594,68731.0,68730.0,0.002]
[1730706643921,0.3708,68731.0,68730.0,0.074795]
[1730706644232,0.3608,68731.0,68730.0,0.073795]
[1730706644427,0.3608,68731.0,68730.0,0.074795]
[1730706644629,0.3608,68731.0,68730.0,0.073795]
[1730706644932,0.433594,68731.0,68730.0,0.001]
[1730706645523,0.072796,68729.0,68728.0,0.0311]
[1730706647926,0.073796,68729.0,68728.0,0.0521]
[1730706648320,0.073796,68729.0,68728.0,0.0421]
[1730706648529,0.073796,68729.0,68728.0,0.0561]
[1730706649630,0.073796,68729.0,68728.0,0.0551]
[1730706650030,0.073796,68729.0,68728.0,0.0501]
[1730706650433,0.073796,68729.0,68728.0,0.0401]
[1730706650639,0.073796,68729.0,68728.0,0.0591]
[1730706651136,0.072796,68729.0,68728.0,0.0451]
[1730706651341,0.073796,68729.0,68728.0,0.0401]
[1730706651637,0.073796,68729.0,68728.0,0.0501]
[1730706652746,0.073796,68729.0,68728.0,0.122897]
[1730706652931,0.073796,68729.0,68728.0,0.127897]
[1730706653531,0.073796,68729.0,68728.0,0.122897]
[1730706654227,0.073796,68729.0,68728.0,0.126897]
[1730706656132,0.072796,68729.0,68728.0,0.117897]
[1730706656437,0.073796,68729.0,68728.0,0.117897]
[1730706656740,0.073796,68729.0,68728.0,0.127897]
[1730706657247,0.073796,68729.0,68728.0,0.113897]
[1730706657248,0.072796,68729.0,68728.0,0.113897]
[1730706657429,0.072796,68729.0,68728.0,0.122897]
[1730706657430,0.073796,68729.0,68728.0,0.122897]
[1730706657731,0.073796,68729.0,68728.0,0.126897]
[1730706657938,0.073796,68729.0,68728.0,0.131897]
[1730706659334,0.073796,68729.0,68728.0,0.117897]
[1730706659529,0.073796,68729.0,68728.0,0.122897]
[1730706660142,0.072796,68729.0,68728.0,0.103897]
[1730706660750,0.073796,68729.0,68728.0,0.131897]
[1730706661146,0.073796,68729.0,68728.0,0.127897]
[1730706662240,0.073796,68729.0,68728.0,0.113897]
[1730706662440,0.073796,68729.0,68728.0,0.124897]
[1730706662830,0.072796,68729.0,68728.0,0.114897]
[1730706663136,0.073796,68729.0,68728.0,0.111897]
[1730706663350,0.073796,68729.0,68728.0,0.122897]
[1730706663735,0.073796,68729.0,68728.0,0.125897]
[1730706664240,0.072796,68729.0,68728.0,0.114897]
[1730706664441,0.001,68729.0,68728.0,0.122897]
[1730706664633,0.3608,68731.0,68730.0,0.072795]
[1730706665831,0.433594,68731.0,68730.0,0.072795]
[1730706666243,0.7216,68731.0,68730.0,0.014]
[1730706666542,1.230874,68731.0,68730.0,0.014]
[1730706666948,1.350514,68731.0,68730.0,0.028]
[1730706667136,1.231874,68731.0,68730.0,0.021]
[1730706667341,1.349514,68731.0,68730.0,0.007]
[1730706667552,1.355514,68731.0,68730.0,0.008]
[1730706668043,1.38996596,68731.0,68730.0,0.008]
[1730706668641,1.41400235,68731.0,68730.0,0.008]
[1730706668853,0.97752235,68731.0,68730.0,0.008]
[1730706669152,0.97852235,68731.0,68730.0,0.001]
[1730706669444,0.46463039,68731.0,68730.0,0.073795]
[1730706669849,0.440594,68731.0,68730.0,0.073795]
[1730706670034,0.433594,68731.0,68730.0,0.072795]
[1730706670345,0.433594,68731.0,68730.0,0.074795]
[1730706670850,0.440594,68731.0,68730.0,0.073795]
[1730706671146,0.3678,68731.0,68730.0,0.073795]
[1730706671535,0.007,68731.0,68730.0,0.073795]
[1730706671741,0.007,68731.0,68730.0,0.076795]
[1730706672337,0.00218331,68733.0,68732.0,0.072793]
[1730706672338,0.07497531,68733.0,68732.0,0.072793]
[1730706672649,0.00218331,68733.0,68732.0,0.072793]
[1730706673559,0.00218331,68733.0,68732.0,0.083793]
[1730706673743,0.00318331,68733.0,68732.0,0.093793]
[1730706675242,0.07597531,68733.0,68732.0,0.093793]
[1730706675551,0.07597531,68733.0,68732.0,0.01]
[1730706675757,0.072794,68731.0,68730.0,0.072795]
[1730706677357,0.001,68731.0,68730.0,0.086795]
[1730706678555,0.001,68731.0,68730.0,0.096795]
[1730706679057,0.002,68731.0,68730.0,0.110795]
[1730706679253,0.002,68731.0,68730.0,0.114795]
[1730706679454,0.00218331,68733.0,68730.0,0.086795]
[1730706679656,0.00218331,68733.0,68732.0,0.21267295]
[1730706679965,0.072784,68741.0,68733.0,0.145582]
[1730706680259,0.072785,68740.0,68739.0,0.072786]
[1730706680653,0.072788,68737.0,68736.0,0.072789]
[1730706681257,0.072784,68741.0,68734.0,0.0308]
[1730706681557,0.3608,68736.0,68734.0,0.0308]
[1730706681858,0.07279,68735.0,68734.0,0.0308]
[1730706682047,0.07279,68735.0,68732.0,0.014]
[1730706682253,0.072792,68733.0,68732.0,0.014]
[1730706682654,0.072794,68731.0,68730.0,0.072795]
[1730706683452,0.072794,68731.0,68726.0,0.103599]
[1730706683663,0.072794,68731.0,68718.0,0.09016752]
[1730706683664,0.072806,68721.0,68718.0,0.09016752]
[1730706683857,0.433607,68719.0,68718.0,0.05816752]
[1730706685674,0.433607,68719.0,68718.0,0.07216752]
[1730706686056,0.434607,68719.0,68718.0,0.08616752]
[1730706687768,0.434607,68719.0,68718.0,0.028]
[1730706689170,0.45846691,68719.0,68718.0,0.028]
[1730706695376,0.89502691,68719.0,68718.0,0.028]
[1730706695988,0.89502691,68719.0,68706.0,0.07282]
[1730706695989,0.07282,68707.0,68706.0,0.07282]
[1730706696183,0.3608,68709.0,68704.0,0.0624]
[1730706696480,0.072822,68705.0,68704.0,0.0624]
[1730706697201,0.072835,68694.0,68693.0,0.072833]
[1730706697482,0.072835,68694.0,68692.0,0.0319]
[1730706697483,0.072834,68693.0,68692.0,0.0319]
[1730706699084,0.074834,68693.0,68692.0,0.0459]
[1730706699383,0.074834,68693.0,68692.0,0.118735]
[1730706705388,0.3608,68703.0,68692.0,0.0459]
[1730706705689,0.3608,68703.0,68702.0,0.072825]
[1730706705891,0.433624,68703.0,68702.0,0.072825]
[1730706707490,0.072828,68700.0,68699.0,0.072828]
[1730706707987,0.3618,68703.0,68692.0,0.0509]
[1730706708189,0.072834,68694.0,68693.0,0.072834]
[1730706709390,0.073834,68694.0,68693.0,0.086834]
[1730706710903,0.074834,68694.0,68693.0,0.091834]
[1730706711093,0.435634,68694.0,68693.0,0.091834]
[1730706711603,0.435634,68694.0,68693.0,0.019]
[1730706712701,0.435634,68694.0,68693.0,0.091834]
[1730706714896,0.45876769,68694.0,68693.0,0.019]
[1730706715302,0.59864764,68694.0,68693.0,0.019]
[1730706716814,0.52581364,68694.0,68693.0,0.019]
[1730706719213,0.38593369,68694.0,68693.0,0.019]
[1730706720715,0.3628,68694.0,68693.0,0.019]
[1730706724811,0.457,68694.0,68693.0,0.019]
[1730706728627,0.3942,68694.0,68693.0,0.019]
[1730706729822,0.5066,68694.0,68693.0,0.019]
[1730706730614,0.3628,68694.0,68693.0,0.019]
[1730706734213,0.3129,68694.0,68693.0,0.019]
[1730706734409,0.263,68694.0,68693.0,0.019]
[1730706736911,0.02312323,68702.0,68693.0,0.019]
[1730706737117,0.3608,68703.0,68694.0,0.0306]
[1730706737522,0.3608,68703.0,68695.0,0.0301]
[1730706738422,0.002,68702.0,68695.0,0.0301]
[1730706738820,0.3608,68697.0,68695.0,0.0301]
[1730706739221,0.3608,68697.0,68694.0,0.0306]
[1730706739416,0.3608,68697.0,68695.0,0.021]
[1730706741120,0.3618,68697.0,68695.0,0.02]
[1730706741330,0.3628,68697.0,68695.0,0.02]
[1730706747928,0.3628,68697.0,68696.0,0.0316]
[1730706749119,0.3618,68697.0,68696.0,0.0456]
[1730706749432,0.3628,68697.0,68696.0,0.02]
[1730706752320,0.3628,68697.0,68696.0,0.45672]
[1730706755221,0.3628,68697.0,68696.0,0.02]
[1730706756513,0.002,68697.0,68696.0,0.45672]
[1730706756718,0.3608,68707.0,68696.0,0.45672]
[1730706756920,0.3608,68707.0,68706.0,0.13987995]
[1730706758127,0.3618,68707.0,68706.0,0.13987995]
[1730706758325,0.3628,68707.0,68706.0,0.13987995]
[1730706758523,0.3618,68707.0,68706.0,0.13987995]
[1730706758723,0.3688,68707.0,68706.0,0.14087995]
[1730706758926,0.3678,68707.0,68706.0,0.14087995]
[1730706759129,0.3688,68707.0,68706.0,0.14887995]
[1730706761029,0.3688,68707.0,68706.0,0.58551995]
[1730706761226,0.3678,68707.0,68706.0,0.57751995]
[1730706761428,0.3738,68707.0,68706.0,0.57851995]
[1730706764127,0.3738,68707.0,68706.0,0.60172254]
[1730706767128,0.3738,68707.0,68706.0,0.16508254]
[1730706768240,0.3738,68707.0,68706.0,0.60172254]
[1730706768541,0.013,68707.0,68706.0,0.60172254]
[1730706772732,0.013,68707.0,68706.0,0.16508254]
[1730706774932,0.013,68707.0,68706.0,0.23790354]
[1730706778147,0.013,68707.0,68706.0,0.67454354]
[1730706778641,0.013,68707.0,68706.0,0.23790354]
[1730706778836,0.072809,68718.0,68706.0,0.60172254]
[1730706779041,0.38434161,68721.0,68715.0,0.072811]
[1730706779247,0.3608,68721.0,68715.0,0.072811]
[1730706779846,0.0656,68722.0,68715.0,0.072811]
[1730706781137,0.01618377,68716.0,68715.0,0.073811]
[1730706781336,0.02118377,68716.0,68715.0,0.073811]
[1730706781944,0.01618377,68716.0,68715.0,0.073811]
[1730706782148,0.01618377,68716.0,68715.0,0.082811]
[1730706783143,0.01618377,68716.0,68715.0,0.191211]
[1730706783952,0.00318377,68716.0,68715.0,0.209211]
[1730706784451,0.00318377,68716.0,68715.0,0.23266796]
[1730706785450,0.001,68716.0,68715.0,0.23266796]
[1730706785655,0.3608,68730.0,68729.0,0.072796]
[1730706786040,0.3608,68730.0,68729.0,0.21267595]
[1730706787952,0.3608,68730.0,68729.0,0.21367595]
[1730706787953,0.3658,68730.0,68729.0,0.21367595]
[1730706788347,0.3758,68730.0,68729.0,0.21467595]
[1730706790547,0.072782,68743.0,68741.0,0.072784]
[1730706791347,0.0963253,68745.0,68741.0,0.072784]
[1730706791653,0.0382,68742.0,68741.0,0.073784]
[1730706791851,0.0512,68742.0,68741.0,0.074784]
[1730706793045,0.018,68742.0,68741.0,0.074784]
[1730706805251,0.018,68742.0,68741.0,0.2583304]
[1730706808560,0.018,68742.0,68741.0,0.2718372]
[1730706809058,0.018,68742.0,68741.0,0.1665572]
[1730706824968,0.018,68742.0,68741.0,0.2583304]
[1730706827576,0.018,68742.0,68741.0,0.30180686]
[1730706828674,0.018,68742.0,68741.0,0.21003366]
[1730706828880,0.018,68742.0,68741.0,0.1665572]
[1730706831082,0.018,68742.0,68741.0,0.2583304]
[1730706831887,0.018,68742.0,68741.0,0.1665572]
[1730706835998,0.013,68742.0,68741.0,0.1665572]
[1730706836575,0.013,68742.0,68741.0,0.1655572]
[1730706836784,0.0319,68749.0,68748.0,0.072776]
[1730706836981,0.0319,68749.0,68748.0,0.1645492]
[1730706838084,0.00120001,68758.0,68756.0,0.072768]
[1730706838287,0.0635,68768.0,68756.0,0.2563144]
[1730706838587,0.072762,68761.0,68756.0,0.2563144]
[1730706839581,0.072762,68761.0,68756.0,0.1645412]
[1730706839994,0.072762,68761.0,68756.0,0.1655412]
[1730706840490,0.00518227,68757.0,68756.0,0.2583144]
[1730706840687,0.00518227,68757.0,68756.0,0.1665412]
[1730706840987,0.072766,68758.0,68757.0,0.072767]
[1730706841890,0.032,68763.0,68756.0,0.0937732]
[1730706842099,0.072764,68760.0,68759.0,0.072765]
[1730706842389,0.072764,68760.0,68757.0,0.001]
[1730706842390,0.072766,68758.0,68757.0,0.001]
[1730706842593,0.1645392,68758.0,68757.0,0.001]
[1730706842982,0.072767,68757.0,68756.0,0.002]
[1730706843384,0.509087,68757.0,68756.0,0.002]
[1730706843791,0.509087,68757.0,68756.0,0.001]
[1730706844586,0.512087,68757.0,68756.0,0.002]
[1730706845179,0.512087,68757.0,68755.0,0.072768]
[1730706845180,0.072768,68756.0,68755.0,0.072768]
[1730706845381,0.542288,68756.0,68755.0,0.072768]
[1730706846994,0.542288,68756.0,68755.0,0.073768]
[1730706847593,0.545288,68756.0,68755.0,0.074768]
[1730706848987,0.545288,68756.0,68755.0,0.1665412]
[1730706849293,0.545288,68756.0,68746.0,0.072778]
[1730706849294,0.072778,68747.0,68746.0,0.072778]
[1730706850584,0.0917732,68749.0,68746.0,0.014]
[1730706850787,0.072777,68747.0,68746.0,0.028]
[1730706851300,0.509177,68747.0,68746.0,0.028]
[1730706851795,0.509177,68747.0,68746.0,0.015]
[1730706852290,0.510177,68747.0,68746.0,0.002]
[1730706853088,0.509177,68747.0,68746.0,0.001]
[1730706853284,0.511177,68747.0,68746.0,0.074778]
[1730706853685,0.516177,68747.0,68746.0,0.074778]
[1730706854692,0.53960983,68747.0,68746.0,0.074778]
[1730706854898,0.63138303,68747.0,68746.0,0.10382]
[1730706857391,0.53960983,68747.0,68746.0,0.10382]
[1730706861799,0.57508447,68747.0,68746.0,0.10382]
[1730706862905,0.67692447,68747.0,68746.0,0.10382]
[1730706863409,0.97692447,68747.0,68746.0,0.10382]
[1730706863700,0.072792,68733.0,68732.0,0.00218228]
[1730706863895,0.433592,68733.0,68732.0,0.00218228]
[1730706865001,0.433592,68733.0,68732.0,0.01618228]
[1730706865306,0.433592,68733.0,68732.0,0.03018228]
[1730706865898,1.00995582,68733.0,68732.0,0.03018228]
[1730706866215,0.072795,68731.0,68705.0,0.13988382]
[1730706866399,0.072817,68709.0,68707.0,0.0316]
[1730706866992,0.072817,68709.0,68707.0,0.104419]
[1730706867193,0.072817,68709.0,68707.0,0.0316]
[1730706867807,0.072817,68709.0,68708.0,0.3748]
[1730706868307,0.072817,68709.0,68708.0,0.447619]
[1730706868806,0.073817,68709.0,68708.0,0.459619]
[1730706870910,0.073817,68709.0,68708.0,0.098819]
[1730706871518,0.073817,68709.0,68708.0,0.026]
[1730706871701,0.434617,68709.0,68708.0,0.026]
[1730706871901,0.434617,68709.0,68708.0,0.098819]
[1730706872102,0.3618,68709.0,68708.0,0.098819]
[1730706874304,0.001,68709.0,68708.0,0.098819]
[1730706891412,0.001,68709.0,68708.0,0.19064493]
[1730706895314,0.001,68709.0,68708.0,0.23412139]
[1730706896410,0.12242593,68722.0,68708.0,0.23412139]
[1730706896411,0.072806,68721.0,68720.0,0.072805]
[1730706896618,0.072806,68721.0,68720.0,0.16463093]
[1730706896911,0.072806,68721.0,68720.0,0.072805]
[1730706897924,0.072806,68721.0,68720.0,0.082805]
[1730706898217,0.073806,68721.0,68720.0,0.082805]
[1730706899017,0.073806,68721.0,68720.0,0.095805]
[1730706899018,0.074806,68721.0,68720.0,0.095805]
[1730706900218,0.073806,68721.0,68720.0,0.085805]
[1730706900431,0.074806,68721.0,68720.0,0.095805]
[1730706900723,0.002,68721.0,68720.0,0.18763093]
[1730706901223,0.16663093,68721.0,68720.0,0.023]
[1730706901418,0.16663093,68721.0,68710.0,0.072816]
[1730706901419,0.072815,68711.0,68710.0,0.072816]
[1730706901620,0.072822,68706.0,68705.0,0.09661579]
[1730706901822,0.072822,68706.0,68705.0,0.07282]
[1730706902328,0.072826,68701.0,68700.0,0.00076]
[1730706902624,0.072838,68690.0,68689.0,0.04369318]
[1730706902816,0.072841,68687.0,68686.0,0.072841]
[1730706903015,0.3608,68690.0,68686.0,0.09182593]
[1730706903317,0.072834,68694.0,68689.0,0.072839]
[1730706903516,0.072834,68694.0,68693.0,0.072834]
[1730706903712,0.3608,68695.0,68694.0,0.072833]
[1730706904826,0.433632,68695.0,68694.0,0.072833]
[1730706905316,0.072838,68691.0,68690.0,0.072836]
[1730706906525,0.073838,68691.0,68690.0,0.072836]
[1730706907112,0.074838,68691.0,68690.0,0.072836]
[1730706910224,0.002,68691.0,68690.0,0.072836]
[1730706910429,0.074837,68691.0,68690.0,0.072836]
[1730706910917,0.002,68691.0,68690.0,0.072836]
[1730706911318,0.002,68691.0,68690.0,0.21280595]
[1730706912626,0.002,68691.0,68690.0,0.57360595]
[1730706913022,0.002,68691.0,68690.0,0.21280595]
[1730706913229,0.002,68691.0,68690.0,0.57360595]
[1730706918748,0.3608,68701.0,68700.0,0.072827]
[1730706920260,0.3608,68701.0,68700.0,0.073827]
[1730706920261,0.3618,68701.0,68700.0,0.073827]
[1730706920957,0.3628,68701.0,68700.0,0.073827]
[1730706921852,0.3618,68701.0,68700.0,0.072827]
[1730706922153,0.3628,68701.0,68700.0,0.075827]
[1730706922849,0.3618,68701.0,68700.0,0.075827]
[1730706923055,0.3618,68701.0,68700.0,0.077827]
[1730706923056,0.3628,68701.0,68700.0,0.077827]
[1730706923241,0.3618,68701.0,68700.0,0.074827]
[1730706923446,0.3618,68701.0,68700.0,0.075827]
[1730706923648,0.3628,68701.0,68700.0,0.077827]
[1730706924746,0.3618,68701.0,68700.0,0.074827]
[1730706924956,0.3628,68701.0,68700.0,0.077827]
[1730706925460,0.3628,68701.0,68700.0,0.16966876]
[1730706925757,0.3628,68701.0,68700.0,0.16866876]
[1730706926848,0.3618,68701.0,68700.0,0.16766876]
[1730706927157,0.3628,68701.0,68700.0,0.16866876]
[1730706928358,0.3618,68701.0,68700.0,0.16566876]
[1730706928563,0.3628,68701.0,68700.0,0.16866876]
[1730706929358,0.002,68701.0,68700.0,0.16866876]
[1730706931963,0.16666776,68701.0,68700.0,0.004]
[1730706933249,0.074826,68701.0,68700.0,0.004]
[1730706936064,0.074826,68701.0,68700.0,0.076827]
[1730706936262,0.09813168,68701.0,68700.0,0.076827]
[1730706939157,0.82278568,68701.0,68684.0,0.04369318]
[1730706939361,0.50076941,68694.0,68683.0,0.04369318]
[1730706939553,0.433636,68694.0,68693.0,0.072834]
[1730706939954,0.072836,68694.0,68693.0,0.072834]
[1730706940358,0.433636,68694.0,68693.0,0.072834]
[1730706941056,0.3608,68694.0,68693.0,0.072834]
[1730706942163,0.3618,68694.0,68693.0,0.072834]
[1730706942665,0.3628,68694.0,68693.0,0.072834]
[1730706943266,0.38666925,68694.0,68693.0,0.072834]
[1730706943468,0.3628,68694.0,68693.0,0.072834]
[1730706943668,0.3628,68694.0,68693.0,0.21280341]
[1730706944969,0.002,68694.0,68693.0,0.57360341]
[1730706945962,0.002,68694.0,68693.0,0.433634]
[1730706946164,0.074833,68694.0,68693.0,0.3608]
[1730706948972,0.074833,68694.0,68693.0,0.433634]
[1730706949978,0.072845,68683.0,68682.0,0.04369318]
[1730706950271,0.072848,68680.0,68679.0,0.07503198]
[1730706950571,0.072848,68680.0,68679.0,0.00218398]
[1730706951463,0.07285,68678.0,68677.0,0.072851]
[1730706952568,0.07385,68678.0,68677.0,0.072851]
[1730706952961,0.072856,68674.0,68673.0,0.072855]
[1730706954874,0.073856,68674.0,68673.0,0.072855]
[1730706955660,0.074856,68674.0,68673.0,0.072855]
[1730706959264,0.002,68674.0,68657.0,0.04369318]
[1730706959470,0.072865,68664.0,68663.0,0.0750504]
[1730706959669,0.072863,68667.0,68666.0,0.072863]
[1730706960077,0.072865,68665.0,68663.0,0.0750504]
[1730706960271,0.072865,68665.0,68664.0,0.072865]
[1730706961076,0.072862,68668.0,68666.0,0.072862]
[1730706961976,0.072862,68667.0,68666.0,0.072862]
[1730706964375,0.073862,68667.0,68666.0,0.072862]
[1730706964575,0.001,68667.0,68663.0,0.0021844]
[1730706964878,0.072865,68664.0,68663.0,0.0021844]
[1730706965981,0.072865,68664.0,68663.0,0.0750504]
[1730706966280,0.002,68667.0,68665.0,0.072863]
[1730706966281,0.072865,68666.0,68665.0,0.072863]
[1730706966682,0.43366,68669.0,68668.0,0.072861]
[1730706968483,0.43466,68669.0,68668.0,0.072861]
[1730706969079,0.43566,68669.0,68668.0,0.072861]
[1730706970177,0.3628,68669.0,68668.0,0.072861]
[1730706970574,0.3618,68669.0,68668.0,0.072861]
[1730706970876,0.3628,68669.0,68668.0,0.072861]
[1730706971276,0.43566,68669.0,68668.0,0.072861]
[1730706971583,0.3628,68669.0,68668.0,0.072861]
[1730706973285,0.3628,68669.0,68668.0,0.16474481]
[1730706975889,0.45468381,68669.0,68665.0,0.072864]
[1730706976180,0.072861,68668.0,68667.0,0.072861]
[1730706976592,0.3628,68669.0,68668.0,0.072861]
[1730706977185,0.43566,68669.0,68668.0,0.072861]
[1730706977387,0.52754381,68669.0,68668.0,0.072861]